bitfinex/quotes_ETHUSD_20250404
["timestamp","ask_amount","ask_price","bid_price","bid_amount"]
[1743740582750,4.69412773,1785.9,1785.8,5.59973]
[1743740584352,4.69412773,1785.9,1785.7,11.19984]
[1743740584666,4.69412773,1785.9,1785.8,5.59973]
[1743740585764,2.59822521,1785.9,1785.8,5.59973]
[1743740586067,6.01,1786.0,1785.9,5.59941]
[1743740586365,5.408,1786.0,1785.9,6.37571]
[1743740586662,8.60822521,1786.1,1786.0,5.5991]
[1743740586827,14.01622521,1786.1,1786.0,5.5991]
[1743740589533,8.60822521,1786.1,1786.0,5.77865061]
[1743740589762,8.60822521,1786.1,1786.0,6.99408667]
[1743740590067,14.01622521,1786.1,1786.0,6.99408667]
[1743740590774,14.01622521,1786.1,1786.0,5.77865061]
[1743740592273,8.00622521,1786.1,1786.0,5.77865061]
[1743740596593,8.00622521,1786.1,1786.0,0.17955061]
[1743740596748,8.00622521,1786.1,1786.0,5.5991]
[1743740596948,8.00622521,1786.1,1786.0,5.77849886]
[1743740597906,5.408,1786.1,1786.0,5.77849886]
[1743740598068,8.00622521,1786.1,1786.0,5.77849886]
[1743740601497,8.00622521,1786.1,1786.0,6.53739886]
[1743740603724,2.59822521,1786.1,1786.0,6.53739886]
[1743740604174,8.00422521,1786.1,1786.0,6.53739886]
[1743740604371,9.03893933,1786.3,1786.1,5.59864]
[1743740604578,5.406,1786.2,1786.1,5.59864]
[1743740604776,0.7546,1786.6,1786.2,5.59847]
[1743740604979,52.31722521,1786.7,1786.6,5.59722]
[1743740605184,57.72322521,1786.7,1786.6,5.59722]
[1743740605604,61.14253312,1786.7,1786.6,5.59722]
[1743740605908,66.74964294,1786.7,1786.6,5.59722]
[1743740608124,0.7546,1786.5,1786.3,5.59815]
[1743740608410,2.59822521,1786.4,1786.3,5.59815]
[1743740610206,8.00322521,1786.4,1786.3,5.59815]
[1743740610410,5.405,1786.4,1786.3,5.59815]
[1743740610586,5.405,1786.4,1786.3,6.717805]
[1743740611323,5.405,1786.4,1786.3,7.470805]
[1743740613388,5.405,1786.4,1786.3,7.52678254]
[1743740613720,5.405,1786.4,1786.3,7.470805]
[1743740616238,9.1596,1786.4,1786.3,5.59815]
[1743740618237,3.0,1786.3,1786.2,11.19675]
[1743740618413,5.59822521,1786.3,1786.2,11.19675]
[1743740619613,3.0,1786.3,1786.2,11.95205]
[1743740620021,14.415,1786.4,1786.3,5.59816]
[1743740620505,6.01,1786.4,1786.3,5.59816]
[1743740620708,11.414,1786.4,1786.3,7.353181]
[1743740621729,5.404,1786.4,1786.3,7.52876344]
[1743740625311,5.404,1786.4,1786.3,5.77374244]
[1743740629147,6.1567,1786.4,1786.3,5.77374244]
[1743740631429,5.404,1786.4,1786.3,5.77374244]
[1743740635020,6.01,1786.8,1786.7,5.59691]
[1743740635219,6.01,1786.9,1786.8,5.59659]
[1743740635449,11.413,1786.9,1786.8,5.7699524]
[1743740635651,6.01,1786.9,1786.8,5.7699524]
[1743740635853,0.42200133,1787.2,1787.0,5.59583]
[1743740636163,2.59822521,1787.2,1787.1,5.59565]
[1743740636365,8.00122521,1787.2,1787.1,5.76694275]
[1743740636858,5.403,1787.2,1787.1,5.76694275]
[1743740637166,6.01,1787.3,1787.2,5.59534]
[1743740637447,9.39612521,1787.6,1787.3,5.59503]
[1743740637649,8.403,1787.5,1787.4,5.59471]
[1743740637856,8.403,1787.5,1787.4,5.76370633]
[1743740640145,6.01,1787.6,1787.5,5.5944]
[1743740640451,14.412,1787.6,1787.5,5.5944]
[1743740640644,9.01,1787.6,1787.5,5.76203314]
[1743740640845,14.412,1787.6,1787.5,5.76203314]
[1743740641835,9.01,1787.6,1787.5,6.51213314]
[1743740642162,8.401,1787.6,1787.5,7.64780745]
[1743740643243,5.401,1787.6,1787.5,7.64780745]
[1743740643427,0.05,1787.9,1787.8,6.34356]
[1743740643628,0.05,1787.9,1787.8,8.31877129]
[1743740643851,0.05,1787.9,1787.8,8.26284269]
[1743740646623,0.05,1787.9,1787.8,8.31876519]
[1743740646827,6.01,1788.3,1787.8,8.31876519]
[1743740646828,6.01,1788.3,1788.2,5.59221]
[1743740647062,11.60822521,1788.4,1788.3,5.5919]
[1743740647236,17.00822521,1788.4,1788.3,5.75138342]
[1743740647427,11.60822521,1788.4,1788.3,5.75138342]
[1743740647829,17.00822521,1788.4,1788.3,5.75138342]
[1743740649530,3.0,1788.4,1788.3,5.75138342]
[1743740649758,5.399,1788.5,1788.4,5.59159]
[1743740650067,3.0,1788.6,1788.5,5.59127]
[1743740650274,6.01,1788.7,1788.6,5.59096]
[1743740650447,5.399,1788.7,1788.6,5.59096]
[1743740650639,8.399,1788.7,1788.6,5.74714061]
[1743740650835,10.99435252,1788.7,1788.6,0.15618061]
[1743740651041,3.0,1788.6,1788.4,5.59153]
[1743740651238,2.59822521,1788.5,1788.4,5.59153]
[1743740651437,5.59822521,1788.5,1788.4,5.73532434]
[1743740652345,5.59822521,1788.5,1788.4,0.14379434]
[1743740652538,6.15804773,1788.5,1788.4,0.14379434]
[1743740652738,6.15804773,1788.5,1788.4,5.59159]
[1743740652970,3.55982252,1788.5,1788.4,5.73540957]
[1743740653167,5.59822521,1788.5,1788.4,5.73540957]
[1743740654371,5.59822521,1788.5,1788.4,0.14381957]
[1743740654536,6.41152521,1788.5,1788.4,0.14381957]
[1743740655038,6.41152521,1788.5,1788.4,0.14205279]
[1743740656173,6.41152521,1788.5,1788.3,5.59177]
[1743740656543,6.41152521,1788.5,1788.4,0.14205279]
[1743740656775,7.61177973,1788.5,1788.4,0.14205279]
[1743740658582,16.22000494,1788.5,1788.4,0.14205279]
[1743740658740,16.22000494,1788.5,1787.9,0.809]
[1743740658741,14.17177973,1788.5,1788.2,5.59196]
[1743740658942,5.59822521,1788.3,1788.2,11.184]
[1743740659253,10.99522521,1788.3,1788.2,11.31567659]
[1743740660287,10.99522521,1788.3,1788.2,5.72363659]
[1743740664167,8.397,1788.3,1788.2,5.72363659]
[1743740664366,8.397,1788.3,1788.2,6.54793659]
[1743740665688,10.99522521,1788.3,1788.2,6.54793659]
[1743740665889,8.397,1788.3,1788.2,6.54793659]
[1743740666186,9.01,1788.5,1788.4,5.59159]
[1743740666390,14.406,1788.5,1788.4,5.59159]
[1743740666588,14.406,1788.5,1788.4,5.72243574]
[1743740667490,14.406,1788.5,1788.4,5.59159]
[1743740667857,9.01,1788.5,1788.4,5.59159]
[1743740668058,14.406,1788.5,1788.4,5.59159]
[1743740671585,9.01,1788.5,1788.4,5.59159]
[1743740671787,43.657,1788.8,1788.7,5.59065]
[1743740672087,52.052,1788.8,1788.7,5.71945529]
[1743740672468,43.657,1788.8,1788.7,5.71945529]
[1743740672678,52.052,1788.8,1788.7,5.71945529]
[1743740674698,8.395,1788.8,1788.7,5.71945529]
[1743740679479,9.1932,1788.8,1788.7,0.12880529]
[1743740679681,10.97834252,1788.8,1788.7,0.12880529]
[1743740680098,10.97834252,1788.8,1788.7,5.71945529]
[1743740680485,9.1932,1788.8,1788.7,5.71945529]
[1743740681307,8.395,1788.8,1788.7,5.71945529]
[1743740682396,5.395,1788.8,1788.7,0.12880529]
[1743740683313,5.395,1788.8,1788.7,5.71945529]
[1743740685894,5.64822521,1788.9,1788.8,5.59033]
[1743740686104,11.04222521,1788.9,1788.8,5.71752198]
[1743740687822,5.64822521,1788.9,1788.8,5.71752198]
[1743740689732,5.64822521,1788.9,1788.8,7.64823918]
[1743740689733,0.05,1788.9,1788.8,7.64823918]
[1743740690532,6.01,1789.2,1789.1,6.3893]
[1743740690854,49.046,1789.4,1789.3,5.58877]
[1743740691218,3.02592121,1789.6,1789.5,5.58815]
[1743740691219,2.59822521,1789.6,1789.5,5.58815]
[1743740691450,11.403,1789.7,1789.6,5.58784]
[1743740691832,11.403,1789.7,1789.6,5.70934214]
[1743740693424,14.403,1789.7,1789.6,5.70934214]
[1743740697651,9.01,1789.7,1789.6,5.70934214]
[1743740698424,11.60822521,1789.7,1789.6,5.70934214]
[1743740699350,11.60822521,1789.7,1789.6,6.83907735]
[1743740699555,9.01,1789.7,1789.6,7.65527735]
[1743740700922,3.0,1789.7,1789.6,7.65527735]
[1743740701529,3.0,1789.7,1789.6,6.52554214]
[1743740705570,5.59822521,1789.7,1789.6,6.52554214]
[1743740705753,5.59822521,1789.7,1789.6,5.70934214]
[1743740708968,3.0,1789.7,1789.6,5.70934214]
[1743740709375,3.0,1789.7,1789.6,6.51754214]
[1743740709563,3.0,1789.7,1789.6,7.72809735]
[1743740711679,8.439,1789.9,1789.8,5.58721]
[1743740712059,8.439,1789.9,1789.8,5.701667]
[1743740720866,0.05,1789.9,1789.8,5.75753481]
[1743740721204,0.05,1789.9,1789.8,6.55372434]
[1743740721371,0.05,1789.9,1789.8,7.20080892]
[1743740724878,0.05,1789.9,1789.8,7.25667083]
[1743740725803,0.05,1789.9,1789.8,7.20080892]
[1743740728097,3.0,1790.3,1790.2,5.58596]
[1743740730081,3.7817,1790.3,1790.2,5.58596]
[1743740732710,3.0,1790.3,1790.2,5.58596]
[1743740734827,8.386,1790.3,1790.2,5.58596]
[1743740739039,9.1677,1790.3,1790.2,5.58596]
[1743740739539,8.386,1790.3,1790.2,5.58596]
[1743740741205,3.0,1790.3,1790.2,6.703169]
[1743740741415,9.01,1790.4,1790.3,5.58565]
[1743740741634,14.395,1790.4,1790.3,6.35345]
[1743740742838,14.395,1790.4,1790.3,5.58565]
[1743740743046,15.2127,1790.4,1790.3,5.58565]
[1743740743247,15.2127,1790.4,1790.2,11.17181]
[1743740743535,2.59822521,1790.3,1790.2,11.17181]
[1743740747616,9.01,1790.4,1790.3,5.58565]
[1743740747820,14.395,1790.4,1790.3,5.58565]
[1743740750641,8.385,1790.4,1790.3,5.58565]
[1743740751161,10.98322521,1790.4,1790.3,5.58565]
[1743740752546,11.80092521,1790.4,1790.3,5.58565]
[1743740754670,10.98322521,1790.4,1790.3,5.58565]
[1743740754963,8.385,1790.4,1790.3,6.7028]
[1743740756071,10.98322521,1790.4,1790.3,6.7028]
[1743740756273,10.98322521,1790.4,1790.3,5.58565]
[1743740756972,8.385,1790.4,1790.3,5.58565]
[1743740757877,2.59822521,1790.6,1790.5,5.58503]
[1743740758036,7.98222521,1790.6,1790.5,5.58503]
[1743740758240,10.98222521,1790.6,1790.5,5.58503]
[1743740758441,10.98222521,1790.6,1790.5,6.702053]
[1743740758665,7.98222521,1790.6,1790.5,6.702053]
[1743740759475,7.98222521,1790.6,1790.5,5.58503]
[1743740760661,10.98222521,1790.6,1790.5,5.58503]
[1743740760870,14.34135042,1790.6,1790.4,11.17042]
[1743740761075,11.74312521,1790.6,1790.5,5.58503]
[1743740766288,11.74312521,1790.6,1790.4,11.17041]
[1743740766580,13.51843773,1790.6,1790.4,11.1704]
[1743740766996,13.51843773,1790.6,1790.5,5.58503]
[1743740767294,11.74312521,1790.6,1790.5,5.58503]
[1743740769491,11.74312521,1790.6,1790.4,5.5852]
[1743740770688,11.74312521,1790.6,1790.4,11.17042]
[1743740771489,11.74312521,1790.6,1790.4,5.5852]
[1743740771685,11.74312521,1790.6,1790.4,11.17044]
[1743740772389,11.74312521,1790.6,1790.4,5.5852]
[1743740772585,11.74312521,1790.6,1790.4,11.17041]
[1743740773297,11.74312521,1790.6,1790.5,5.58503]
[1743740777400,10.98022521,1790.6,1790.5,5.58503]
[1743740778101,6.01,1790.7,1790.6,5.58472]
[1743740778304,8.65822521,1790.9,1790.8,5.58409]
[1743740778598,17.04022521,1790.9,1790.8,5.58409]
[1743740780578,17.04022521,1790.9,1790.7,5.58426]
[1743740781496,17.04022521,1790.9,1790.6,11.16942]
[1743740781678,6.39342521,1790.7,1790.6,5.58471]
[1743740782280,3.39342521,1790.7,1790.6,5.58471]
[1743740783493,3.39342521,1790.7,1790.5,5.58496]
[1743740783494,9.00273521,1790.7,1790.4,5.58519]
[1743740783692,2.59822521,1790.5,1790.4,11.17042]
[1743740783893,7.97922521,1790.5,1790.4,11.17042]
[1743740784095,7.97922521,1790.5,1790.4,5.58519]
[1743740788896,7.97922521,1790.5,1790.4,6.780499]
[1743740789382,9.01,1790.6,1790.5,5.58503]
[1743740789617,14.391,1790.6,1790.5,5.58503]
[1743740789815,14.391,1790.6,1790.5,6.36733]
[1743740790416,9.01,1790.6,1790.5,6.36733]
[1743740790590,14.391,1790.6,1790.5,7.51339341]
[1743740790920,9.01,1790.6,1790.5,7.51339341]
[1743740791122,14.391,1790.6,1790.5,7.51339341]
[1743740792400,9.01,1790.6,1790.5,7.51339341]
[1743740792619,14.391,1790.6,1790.5,7.51339341]
[1743740792826,9.01,1790.6,1790.5,7.51339341]
[1743740792993,14.391,1790.6,1790.5,7.51339341]
[1743740793723,11.391,1790.6,1790.5,7.51339341]
[1743740794693,5.381,1790.6,1790.5,7.51339341]
[1743740797433,5.381,1790.6,1790.4,5.58519]
[1743740797434,8.381,1790.6,1790.4,5.58519]
[1743740797609,3.8201,1790.5,1790.1,5.58617]
[1743740797787,3.8201,1790.5,1790.2,5.5858]
[1743740797788,2.59822521,1790.3,1790.2,5.5858]
[1743740798601,2.59822521,1790.3,1790.1,11.17232]
[1743740798826,5.38,1790.2,1790.1,5.58615]
[1743740799229,6.1804,1790.2,1790.0,5.58646]
[1743740799727,6.1804,1790.2,1790.0,11.17289]
[1743740799935,6.1804,1790.2,1790.0,5.58643]
[1743740800722,6.1804,1790.2,1790.1,5.58628]
[1743740801688,5.38,1790.2,1790.1,5.58628]
[1743740804790,5.38,1790.2,1790.0,5.58643]
[1743740805405,5.38,1790.2,1790.1,5.58628]
[1743740808642,5.38,1790.2,1790.0,5.58643]
[1743740808993,2.59822521,1790.1,1790.0,5.58643]
[1743740819426,5.59822521,1790.1,1790.0,5.58643]
[1743740819628,5.59822521,1790.1,1790.0,6.703756]
[1743740821227,10.97822521,1790.1,1790.0,6.703756]
[1743740824420,10.97822521,1790.1,1790.0,7.501856]
[1743740824757,3.0,1790.1,1790.0,7.501856]
[1743740825053,8.379,1790.1,1790.0,7.501856]
[1743740827155,6.41934094,1790.4,1790.2,5.58596]
[1743740827366,8.379,1790.3,1790.2,6.38406]
[1743740827723,10.97722521,1790.3,1790.2,6.38406]
[1743740829369,3.0,1790.3,1790.2,6.38406]
[1743740829861,3.0,1790.6,1790.4,5.58506]
[1743740830161,3.0,1790.5,1790.4,11.17012]
[1743740830367,8.379,1790.5,1790.4,12.287132]
[1743740833183,3.0,1790.5,1790.4,13.058132]
[1743740835866,8.60822521,1790.7,1790.6,5.58472]
[1743740836182,14.388,1790.7,1790.6,5.58472]
[1743740836342,11.388,1790.7,1790.6,6.33883899]
[1743740837147,6.01,1790.7,1790.6,7.10983899]
[1743740837349,6.01,1790.7,1790.6,7.16567977]
[1743740837564,6.01,1790.7,1790.6,7.10983899]
[1743740839370,8.378,1790.8,1790.7,5.5844]
[1743740839570,8.378,1790.8,1790.7,6.701726]
[1743740845164,2.64822521,1790.9,1790.8,6.33419]
[1743740845165,0.05,1790.9,1790.8,6.33419]
[1743740847694,0.05,1790.9,1790.8,6.3900136]
[1743740848383,0.05,1790.9,1790.8,6.33419]
[1743740848578,0.05,1790.9,1790.8,7.50702562]
[1743740848777,0.05,1790.9,1790.8,7.451202]
[1743740849185,0.05,1790.9,1790.8,7.50702562]
[1743740849695,0.05,1790.9,1790.8,7.451202]
[1743740852692,0.05,1790.9,1790.8,7.50702389]
[1743740852894,1e-05,1790.9,1790.8,7.50702389]
[1743740853095,1e-05,1790.9,1790.8,10.1052491]
[1743740854060,1e-05,1790.9,1790.8,10.04942721]
[1743740854695,1e-05,1790.9,1790.8,7.50702111]
[1743740854894,1e-05,1790.9,1790.8,7.451202]
[1743740855910,1e-05,1790.9,1790.8,7.50702113]
[1743740856793,1e-05,1790.9,1790.8,8.05702113]
[1743740857100,1e-05,1790.9,1790.8,10.65524634]
[1743740858193,1e-05,1790.9,1790.8,10.59942721]
[1743740859258,1e-05,1790.9,1790.8,10.65523786]
[1743740860959,1e-05,1790.9,1790.8,16.53823786]
[1743740861266,1e-05,1790.9,1790.8,7.451202]
[1743740861804,1e-05,1790.9,1790.8,7.50702252]
[1743740862181,1e-05,1790.9,1790.8,7.451202]
[1743740862660,1e-05,1790.9,1790.8,22.31202081]
[1743740862855,1e-05,1790.9,1790.8,22.356202]
[1743740868780,1e-05,1790.9,1790.8,10.451202]
[1743740869186,1e-05,1790.9,1790.8,11.101202]
[1743740870026,1e-05,1790.9,1790.8,16.984202]
[1743740873131,1e-05,1790.9,1790.8,11.101202]
[1743740873291,1e-05,1790.9,1790.8,11.001202]
[1743740873820,1e-05,1790.9,1790.8,6.701102]
[1743740874399,1e-05,1790.9,1790.8,6.75692264]
[1743740875638,1e-05,1790.9,1790.8,6.701102]
[1743740876419,1e-05,1790.9,1790.8,6.75692252]
[1743740876844,1e-05,1790.9,1790.8,6.701102]
[1743740877535,1e-05,1790.9,1790.8,6.756923]
[1743740877926,0.82781,1790.9,1790.8,5.58409]
[1743740879108,0.82781,1790.9,1790.7,6.701726]
[1743740879109,0.82781,1790.9,1790.7,5.58426]
[1743740880446,0.82781,1790.9,1790.6,5.58469]
[1743740880629,0.82781,1790.9,1790.6,11.16928]
[1743740881150,0.82781,1790.9,1790.6,5.58459]
[1743740881306,0.82781,1790.9,1790.5,5.58502]
[1743740881514,0.82781,1790.9,1790.5,5.58488]
[1743740881717,0.82781,1790.9,1790.6,11.22507691]
[1743740882040,0.82781,1790.9,1790.6,5.58458]
[1743740882354,0.82781,1790.9,1790.7,5.6402263]
[1743740882507,0.82781,1790.9,1790.8,0.05583476]
[1743740883445,0.82781,1790.9,1790.8,5.58409]
[1743740883938,0.82781,1790.9,1790.8,6.700928]
[1743740884444,0.82781,1790.9,1790.8,1.116838]
[1743740884646,0.82781,1790.9,1790.7,5.58429]
[1743740886341,0.82781,1790.9,1790.6,11.16928]
[1743740886540,0.82781,1790.9,1790.6,5.58462]
[1743740887944,0.82781,1790.9,1790.6,11.16919]
[1743740888131,0.82781,1790.9,1790.6,5.58457]
[1743740888332,0.82781,1790.9,1790.5,5.58497]
[1743740888630,0.8278,1790.7,1790.4,5.58523]
[1743740888826,0.8278,1790.7,1790.3,5.58565]
[1743740889215,0.8278,1790.7,1790.6,5.58472]
[1743740893030,0.8278,1790.7,1790.5,5.58493]
[1743740893363,0.8278,1790.7,1790.5,6.143423]
[1743740893556,6.19861,1790.9,1790.6,5.64055697]
[1743740893722,6.19861,1790.9,1790.7,5.58431]
[1743740893918,0.82761,1790.9,1790.8,0.05583633]
[1743740894121,0.82761,1790.9,1790.8,5.58409]
[1743740894322,0.82761,1790.9,1790.8,6.70093]
[1743740894524,0.82761,1790.9,1790.8,1.11684]
[1743740895262,0.82761,1790.9,1790.8,6.70093]
[1743740896149,1e-05,1790.9,1790.8,6.7567614]
[1743740896329,1e-05,1790.9,1790.8,6.70093]
[1743740896529,1e-05,1790.9,1790.8,6.75676079]
[1743740897221,1e-05,1790.9,1790.8,6.70093]
[1743740903248,0.81421,1790.9,1790.8,1.11684]
[1743740905261,0.81421,1790.9,1790.7,5.58426]
[1743740905634,0.81421,1790.9,1790.7,11.16857]
[1743740906031,0.81421,1790.9,1790.7,11.16855]
[1743740906359,0.81421,1790.9,1790.7,5.58426]
[1743740907161,0.81421,1790.9,1790.7,5.58437]
[1743740907459,0.81421,1790.9,1790.8,0.558437]
[1743740909031,0.81421,1790.9,1790.6,11.16923]
[1743740909356,0.81421,1790.9,1790.7,5.5844]
[1743740909975,0.81421,1790.9,1790.7,5.5843]
[1743740910481,0.81421,1790.9,1790.5,0.558493]
[1743740910482,0.8142,1791.4,1791.2,5.58258]
[1743740910645,0.8142,1791.7,1791.3,11.77913542]
[1743740910974,6.1842,1791.7,1791.3,5.58253]
[1743740911339,6.1842,1791.7,1791.3,5.5824]
[1743740911738,6.1842,1791.7,1791.3,11.16481]
[1743740912186,6.1842,1791.7,1791.4,11.21998246]
[1743740912478,6.1842,1791.7,1791.4,5.58205]
[1743740913673,6.1842,1791.7,1791.3,6.40528]
[1743740913881,6.1842,1791.7,1791.4,5.58221]
[1743740915762,6.1842,1791.7,1791.5,0.05581127]
[1743740915965,6.1842,1791.7,1791.4,5.58209]
[1743740917902,6.1842,1791.7,1791.3,6.223018]
[1743740918264,6.1842,1791.7,1791.3,11.805458]
[1743740918798,6.1842,1791.7,1791.4,5.5822]
[1743740919170,0.8236,1791.6,1791.3,6.222968]
[1743740919378,0.8236,1791.6,1791.2,5.58264]
[1743740920466,0.8236,1791.6,1791.1,5.58303]
[1743740920772,0.8236,1791.6,1791.1,11.16605]
[1743740920976,0.8236,1791.6,1791.2,5.58282]
[1743740921163,1.82472452,1791.6,1791.2,5.58282]
[1743740921893,1.82472452,1791.6,1791.3,0.05581619]
[1743740922068,6.1936,1791.7,1791.3,6.40471]
[1743740922592,6.1936,1791.7,1791.4,5.58213]
[1743740922900,6.1936,1791.7,1791.3,11.98712]
[1743740923383,0.8236,1791.7,1791.4,5.63799184]
[1743740923587,0.8236,1791.7,1791.5,5.58178]
[1743740924104,6.01,1791.8,1791.6,5.58151]
[1743740924304,6.2416,1791.9,1791.6,5.58151]
[1743740924473,0.8736,1791.9,1791.6,11.16298]
[1743740924672,6.2416,1791.9,1791.7,6.697458]
[1743740924905,6.1416,1791.9,1791.7,1.116298]
[1743740925477,6.1416,1791.9,1791.6,11.16293]
[1743740925711,6.1416,1791.9,1791.6,5.58144]
[1743740926283,6.1416,1791.9,1791.5,5.58185]
[1743740926488,6.1416,1791.9,1791.5,11.16363]
[1743740926719,6.1416,1791.9,1791.4,5.58217]
[1743740926905,6.1416,1791.9,1791.5,5.5819]
[1743740927088,5.368,1791.9,1791.5,5.5819]
[1743740927283,2.59822521,1791.8,1791.2,0.8222]
[1743740927489,2.59822521,1791.8,1791.3,11.16482]
[1743740927906,0.8236,1791.7,1791.3,11.16482]
[1743740928079,0.8236,1791.7,1791.3,12.281302]
[1743740928979,0.8236,1791.7,1791.4,5.58219]
[1743740929222,0.8236,1791.7,1791.5,0.05581239]
[1743740929480,0.8236,1791.7,1791.4,5.58219]
[1743740929790,0.8236,1791.7,1791.3,6.698882]
[1743740929995,0.8236,1791.7,1791.3,12.281292]
[1743740930203,0.8236,1791.7,1791.4,5.58219]
[1743740930537,0.8236,1791.7,1791.4,5.63800248]
[1743740930842,0.8236,1791.7,1791.4,5.58219]
[1743740931939,2.59822521,1791.6,1791.1,5.58297]
[1743740932238,6.1593,1791.5,1791.1,11.724297]
[1743740932441,6.1593,1791.5,1791.2,5.63860804]
[1743740932626,6.1593,1791.5,1791.2,5.58279]
[1743740932827,6.1593,1791.5,1791.3,0.05581805]
[1743740933424,0.756,1791.7,1791.3,6.14625081]
[1743740933633,6.123,1791.7,1791.4,5.58222]
[1743740933999,6.123,1791.7,1791.3,6.94705081]
[1743740934645,6.123,1791.7,1791.3,6.14625081]
[1743740935099,6.123,1791.7,1791.3,0.56385081]
[1743740935529,0.756,1791.7,1791.3,0.56385081]
[1743740935728,6.123,1791.7,1791.3,0.56385081]
[1743740935935,6.123,1791.7,1791.2,6.38357]
[1743740936938,6.123,1791.7,1791.3,5.58251]
[1743740938379,0.756,1791.7,1791.3,5.58251]
[1743740938581,3.756,1791.7,1791.3,5.58251]
[1743740939878,3.756,1791.7,1791.3,11.16492]
[1743740940173,3.756,1791.7,1791.4,1.116492]
[1743740940373,0.756,1791.7,1791.5,0.0558118]
[1743740940578,0.756,1791.7,1791.4,1.116492]
[1743740941289,0.756,1792.0,1791.4,1.917292]
[1743740941490,6.123,1792.0,1791.6,5.58148]
[1743740941659,6.123,1792.0,1791.5,5.58182]
[1743740941884,0.756,1791.9,1791.5,5.58182]
[1743740942802,0.756,1791.9,1791.4,5.58217]
[1743740943026,0.756,1791.8,1791.3,5.58242]
[1743740943164,0.756,1791.7,1791.2,6.38362]
[1743740943501,0.756,1791.7,1791.2,11.1655]
[1743740943900,0.756,1791.7,1791.2,5.58274]
[1743740944095,6.01,1791.7,1791.1,6.141407]
[1743740944298,0.756,1791.5,1790.9,5.58374]
[1743740944502,0.756,1791.5,1790.9,11.16736]
[1743740944671,0.756,1791.5,1791.0,5.58338]
[1743740945405,0.756,1791.5,1791.0,5.58337]
[1743740945624,0.756,1791.5,1790.9,5.58372]
[1743740945808,0.756,1791.5,1791.0,0.558372]
[1743740945969,0.756,1791.5,1791.0,6.141732]
[1743740946599,0.756,1791.5,1791.0,0.558372]
[1743740947105,0.756,1791.4,1791.0,0.558372]
[1743740947300,0.756,1791.4,1790.9,5.58363]
[1743740947301,0.756,1791.3,1790.8,5.58404]
[1743740947505,0.756,1791.3,1790.9,5.63959643]
[1743740949402,0.756,1791.3,1790.9,5.63949643]
[1743740949605,3.0,1791.5,1791.0,5.58331]
[1743740949908,3.7828,1791.5,1791.1,6.141481]
[1743740950402,3.7828,1791.5,1791.2,5.58284]
[1743740951205,0.7828,1791.5,1791.2,11.16549]
[1743740951501,0.7828,1791.5,1791.2,5.58274]
[1743740951702,0.7828,1791.5,1791.3,6.140784]
[1743740951903,6.7928,1791.7,1791.3,6.140784]
[1743740952086,12.1598,1791.7,1791.3,6.140784]
[1743740952607,12.1598,1791.7,1791.3,0.558274]
[1743740952989,6.7928,1791.7,1791.3,11.723174]
[1743740953312,12.1598,1791.7,1791.4,1.1723174]
[1743740955311,12.1598,1791.7,1791.4,6.7545074]
[1743740955475,12.1598,1791.7,1791.4,1.1723174]
[1743740955676,6.1498,1791.7,1791.4,6.7545074]
[1743740955873,5.367,1791.7,1791.3,0.558274]
[1743740956078,0.7828,1791.6,1791.3,0.558274]
[1743740957527,0.7828,1791.6,1791.1,6.923421]
[1743740958035,0.7828,1791.6,1791.1,12.506481]
[1743740958241,0.7828,1791.6,1791.1,6.923391]
[1743740959922,0.7828,1791.6,1791.1,12.506451]
[1743740960429,0.7828,1791.6,1791.1,12.506461]
[1743740960603,0.7828,1791.6,1791.2,1.2506461]
[1743740962137,0.7828,1791.6,1791.2,6.8334661]
[1743740962442,0.7828,1791.6,1791.2,12.4161161]
[1743740962734,0.7828,1791.6,1791.2,6.8333561]
[1743740963087,0.7828,1791.6,1791.2,1.2506461]
[1743740964911,0.7779,1791.5,1791.0,5.58336]
[1743740965439,0.7779,1791.3,1790.9,5.58378]
[1743740965790,0.7779,1791.3,1790.9,11.16744]
[1743740965985,0.7779,1791.3,1790.9,5.58366]
[1743740966299,0.7779,1791.3,1791.0,0.558366]
[1743740967618,0.7779,1791.3,1791.0,6.141826]
[1743740968624,0.7779,1791.3,1791.0,0.558366]
[1743740968792,0.7779,1791.3,1790.8,11.16802]
[1743740968992,0.7779,1791.3,1790.9,11.1674]
[1743740969192,6.1439,1791.3,1790.9,5.58366]
[1743740970007,6.1439,1791.3,1790.8,11.16799]
[1743740970213,6.1439,1791.3,1790.8,5.58395]
[1743740970414,6.1439,1791.3,1790.9,0.558395]
[1743740970926,6.1439,1791.3,1790.9,6.142125]
[1743740972432,6.1439,1791.3,1790.9,0.558395]
[1743740973034,6.1439,1791.3,1790.7,6.35672]
[1743740973035,3.7779,1791.2,1790.7,5.58432]
[1743740974324,3.7779,1791.2,1790.7,11.1686]
[1743740974739,3.7779,1791.2,1790.8,5.58407]
[1743740976643,3.7779,1791.2,1790.7,5.58428]
[1743740976841,3.7779,1791.2,1790.8,0.558428]
[1743740980054,3.7779,1791.2,1790.8,6.142408]
[1743740980355,5.366,1791.3,1791.0,5.58329]
[1743740980356,0.7745,1791.3,1791.0,5.58329]
[1743740980555,0.7745,1791.3,1791.1,0.05582293]
[1743740980725,0.7745,1791.3,1791.0,5.58329]
[1743740980926,0.7745,1791.3,1791.1,0.558329]
[1743740981147,0.7745,1791.3,1790.9,6.39769]
[1743740981452,0.7745,1791.3,1790.8,11.726428]
[1743740981854,0.7745,1791.3,1790.9,5.58375]
[1743740982252,0.7745,1791.3,1791.0,0.05582597]
[1743740983270,0.7745,1791.3,1790.9,5.58365]
[1743740983460,0.7745,1791.1,1790.6,5.58459]